bitfinex-derivatives/quotes_BTCF0:USTF0_20260118
["timestamp","ask_amount","ask_price","bid_price","bid_amount"]
[1768757131794,0.11678232,95318.0,95301.0,0.11541723]
[1768757132098,0.11678232,95318.0,95301.0,0.10492023]
[1768757132996,0.12727732,95318.0,95301.0,0.10492023]
[1768757133682,0.11678232,95310.0,95284.0,0.09111586]
[1768757133887,0.11678232,95308.0,95291.0,0.010498]
[1768757134083,0.11678232,95306.0,95291.0,0.010498]
[1768757134396,0.11678232,95306.0,95292.0,0.10492133]
[1768757134697,0.11678232,95306.0,95290.0,0.10482773]
[1768757135202,0.11678232,95306.0,95291.0,0.10493234]
[1768757137500,0.11678232,95306.0,95291.0,0.11543034]
[1768757139597,0.11302627,95322.0,95298.0,0.09487482]
[1768757139897,0.20750627,95321.0,95310.0,0.10482773]
[1768757140100,0.10482773,95320.0,95302.0,0.22253534]
[1768757140293,0.217854,95320.0,95304.0,0.010497]
[1768757140491,0.217854,95320.0,95306.0,0.010497]
[1768757141396,0.11302627,95320.0,95306.0,0.010497]
[1768757141796,0.11302627,95320.0,95302.0,0.03537182]
[1768757142502,0.217854,95320.0,95302.0,0.03537182]
[1768757142703,0.11302627,95319.0,95301.0,0.10482773]
[1768757142906,0.11302627,95319.0,95305.0,0.010497]
[1768757147104,0.11302627,95319.0,95304.0,0.010497]
[1768757150705,0.2065328,95319.0,95304.0,0.010497]
[1768757151005,0.11302627,95318.0,95306.0,0.010497]
[1768757151304,0.11302627,95317.0,95305.0,0.010497]
[1768757152103,0.11302627,95317.0,95301.0,0.08032473]
[1768757152504,0.11302627,95317.0,95305.0,0.010497]
[1768757152910,0.11302627,95317.0,95301.0,0.08032473]
[1768757153211,0.11302627,95317.0,95302.0,0.10491968]
[1768757153402,0.11302627,95317.0,95305.0,0.010497]
[1768757153603,0.21150255,95317.0,95305.0,0.010497]
[1768757153804,0.00230792,95324.0,95307.0,0.10482773]
[1768757154004,0.00230792,95324.0,95314.0,0.010496]
[1768757154397,9.2e-07,95324.0,95317.0,0.010495]
[1768757154603,9.2e-07,95324.0,95314.0,0.010496]
[1768757154809,9.2e-07,95324.0,95310.0,0.10482773]
[1768757154810,9.2e-07,95324.0,95316.0,0.010496]
[1768757155301,9.2e-07,95324.0,95296.0,0.07530904]
[1768757155502,0.10482773,95311.0,95299.0,0.010497]
[1768757155709,0.09847628,95319.0,95294.0,0.03293691]
[1768757156004,0.11496621,95316.0,95301.0,0.10490977]
[1768757156198,0.20944621,95323.0,95302.0,0.11056674]
[1768757156412,0.10482773,95320.0,95302.0,0.11056674]
[1768757156707,0.10482773,95320.0,95303.0,0.11056674]
[1768757156906,0.10482773,95320.0,95303.0,0.22598617]
[1768757157211,0.21979394,95320.0,95303.0,0.010497]
[1768757157418,0.21979394,95320.0,95303.0,0.02159367]
[1768757157600,0.0984772,95324.0,95304.0,0.10491913]
[1768757157804,0.09448,95322.0,95304.0,0.10491913]
[1768757158108,0.10482773,95320.0,95304.0,0.10491913]
[1768757158613,0.10482773,95320.0,95304.0,0.11541613]
[1768757161715,0.10482773,95320.0,95307.0,0.010497]
[1768757161915,0.10482773,95320.0,95304.0,0.10141613]
[1768757162117,0.20944621,95322.0,95303.0,0.21410332]
[1768757162308,0.10482773,95320.0,95304.0,0.10491858]
[1768757162507,0.10482773,95320.0,95304.0,0.10141558]
[1768757163212,0.10482773,95320.0,95307.0,0.010497]
[1768757163918,0.10482773,95320.0,95308.0,0.10491858]
[1768757164412,0.21344249,95319.0,95303.0,0.01109667]
[1768757164614,0.10482773,95320.0,95291.0,0.29748665]
[1768757164615,0.11496621,95312.0,95291.0,0.29748665]
[1768757164921,0.11496621,95312.0,95301.0,0.010497]
[1768757165317,0.11496621,95312.0,95301.0,0.01044422]
[1768757165818,0.09847628,95317.0,95301.0,0.01044422]
[1768757166017,0.11496621,95316.0,95301.0,0.01044422]
[1768757167119,0.11496621,95316.0,95303.0,0.010497]
[1768757167418,0.11496621,95316.0,95303.0,0.0216808]
[1768757175928,0.09448,95317.0,95303.0,0.0216808]
[1768757176128,0.09448,95317.0,95305.0,0.010497]
[1768757177131,0.20944621,95317.0,95305.0,0.010497]
[1768757180631,0.09448,95317.0,95305.0,0.010497]
[1768757181332,0.09448,95317.0,95307.0,0.010497]
[1768757181831,0.11496621,95319.0,95307.0,0.010497]
[1768757185934,0.11496621,95319.0,95305.0,0.010497]
[1768757188727,0.11496621,95319.0,95307.0,0.010497]
[1768757192038,0.11496621,95319.0,95303.0,0.0111838]
[1768757192238,0.11496621,95319.0,95298.0,0.11638384]
[1768757193338,0.11496621,95319.0,95298.0,0.08838384]
[1768757193639,0.11496621,95319.0,95302.0,0.010497]
[1768757195040,0.21351137,95319.0,95302.0,0.010497]
[1768757195641,0.11678574,95318.0,95302.0,0.010497]
[1768757196843,0.11678574,95318.0,95302.0,0.02149892]
[1768757197942,0.11678574,95318.0,95302.0,0.01100192]
[1768757198145,0.11678574,95318.0,95301.0,0.010497]
[1768757199841,0.12477415,95317.0,95301.0,0.010497]
[1768757201345,0.11427815,95317.0,95301.0,0.010497]
[1768757201844,0.11427815,95317.0,95301.0,0.02134017]
[1768757202845,0.20723948,95314.0,95301.0,0.01084317]
[1768757203145,0.11427815,95313.0,95297.0,0.010498]
[1768757203540,0.11427815,95313.0,95298.0,0.10492188]
[1768757203740,0.11427815,95313.0,95298.0,0.11541988]
[1768757203933,0.11427815,95313.0,95298.0,0.010498]
[1768757204541,0.09296133,95312.0,95298.0,0.010498]
[1768757204740,0.11427815,95307.0,95295.0,0.010498]
[1768757204946,0.11427815,95307.0,95295.0,0.02153078]
[1768757205148,0.11427815,95307.0,95296.0,0.10492573]
[1768757207445,0.09296133,95314.0,95296.0,0.10492573]
[1768757207652,0.20723948,95314.0,95296.0,0.10492573]
[1768757207948,0.11427815,95313.0,95296.0,0.10492573]
[1768757209344,0.11427815,95313.0,95296.0,0.11542373]
[1768757209647,0.11427815,95313.0,95296.0,0.10492573]
[1768757209955,0.09296133,95312.0,95296.0,0.10492573]
[1768757210148,0.11427815,95313.0,95296.0,0.10492573]
[1768757210149,0.09296133,95310.0,95296.0,0.10492573]
[1768757210349,0.11427815,95309.0,95296.0,0.10492573]
[1768757211948,0.11427815,95309.0,95296.0,0.11542373]
[1768757214148,0.11427815,95309.0,95296.0,0.10492573]
[1768757218151,0.10963626,95314.0,95296.0,0.10492573]
[1768757218653,0.10963626,95314.0,95297.0,0.010498]
[1768757218952,0.10963626,95312.0,95295.0,0.01103278]
[1768757219154,0.10963626,95312.0,95294.0,0.010498]
[1768757219453,0.10963626,95312.0,95296.0,0.10492628]
[1768757219651,0.10963626,95312.0,95294.0,0.010498]
[1768757219852,0.10963626,95312.0,95296.0,0.010498]
[1768757220452,0.10963626,95312.0,95297.0,0.10492849]
[1768757229458,0.010496,95313.0,95297.0,0.10492849]
[1768757229862,0.12013226,95313.0,95297.0,0.10492849]
[1768757231960,0.10963626,95313.0,95297.0,0.10492849]
[1768757234963,0.10963626,95313.0,95298.0,0.010498]
[1768757237567,0.10963626,95313.0,95295.0,0.02295736]
[1768757237865,0.10963626,95313.0,95296.0,0.10492573]
[1768757243770,0.010496,95312.0,95296.0,0.10492573]
[1768757253286,0.010496,95312.0,95297.0,0.010498]
[1768757253487,0.10832821,95315.0,95297.0,0.010498]
[1768757253687,0.010496,95315.0,95297.0,0.010498]
[1768757253987,0.010496,95315.0,95298.0,0.10492683]
[1768757256590,0.010496,95315.0,95299.0,0.010497]
[1768757256992,0.010496,95315.0,95295.0,0.13232439]
[1768757256993,0.010496,95315.0,95296.0,0.09873033]
[1768757257181,0.010496,95315.0,95296.0,0.21362766]
[1768757257490,0.010496,95315.0,95299.0,0.010497]
[1768757258890,0.010496,95315.0,95297.0,0.08473033]
[1768757259193,0.010496,95315.0,95298.0,0.10492408]
[1768757261597,0.010496,95315.0,95298.0,0.31855174]
[1768757263093,0.010496,95315.0,95298.0,0.30455174]
[1768757263494,0.010496,95315.0,95298.0,0.29055174]
[1768757264295,0.21409657,95317.0,95298.0,0.29055174]
[1768757265394,0.010496,95313.0,95298.0,0.29055174]
[1768757267596,0.010496,95313.0,95299.0,0.21362766]
[1768757272493,0.010496,95313.0,95300.0,0.21174467]
[1768757277001,0.010496,95313.0,95301.0,0.21174467]
[1768757277301,0.010496,95313.0,95302.0,0.09372959]
[1768757279505,0.010496,95316.0,95302.0,0.09372959]
[1768757279895,0.010496,95316.0,95302.0,0.19774467]
[1768757280604,0.09448,95317.0,95303.0,0.11801508]
[1768757280795,0.09448,95317.0,95303.0,0.10401508]
[1768757280995,0.104976,95317.0,95303.0,0.10401508]
[1768757281605,0.09448,95317.0,95303.0,0.10401508]
[1768757281904,0.09448,95317.0,95305.0,0.10422659]
[1768757282097,0.09448,95317.0,95305.0,0.09022659]
[1768757282602,0.09448,95317.0,95305.0,0.06222659]
[1768757282905,0.09448,95317.0,95305.0,0.18024167]
[1768757283101,0.09448,95317.0,95306.0,0.11801508]
[1768757283402,0.104976,95317.0,95305.0,0.06222659]
[1768757283591,0.10478107,95315.0,95305.0,0.06222659]
[1768757283793,0.104976,95317.0,95302.0,0.11801508]
[1768757285208,0.010496,95314.0,95302.0,0.11801508]
[1768757285403,0.09448,95317.0,95305.0,0.11801508]
[1768757285604,0.09448,95317.0,95307.0,0.11801508]
[1768757288610,0.104976,95317.0,95307.0,0.11801508]
[1768757290007,0.104976,95317.0,95306.0,0.09372959]
[1768757293709,0.104976,95317.0,95306.0,0.07972959]
[1768757294410,0.104976,95317.0,95306.0,0.06572959]
[1768757295614,0.104976,95317.0,95306.0,0.05872959]
[1768757296716,0.104976,95317.0,95304.0,0.11801508]
[1768757307023,0.104976,95317.0,95304.0,0.10401508]
[1768757308030,0.104976,95317.0,95304.0,0.09001508]
[1768757309422,0.010496,95317.0,95305.0,0.09931451]
[1768757309622,0.00015742,95319.0,95305.0,0.09931451]
[1768757309623,0.00015742,95319.0,95306.0,0.09931451]
[1768757311527,0.010495,95318.0,95306.0,0.09931451]
[1768757311825,0.010495,95318.0,95305.0,0.11894009]
[1768757318428,0.010496,95316.0,95305.0,0.11894009]
[1768757318739,0.00015742,95319.0,95308.0,0.09243915]
[1768757319031,0.00015742,95319.0,95309.0,0.1145721]
[1768757334142,0.00015742,95319.0,95309.0,0.20849451]
[1768757334340,0.00015742,95319.0,95310.0,0.11827212]
[1768757337644,0.00015742,95319.0,95310.0,0.21219453]
[1768757339249,0.00015742,95319.0,95311.0,0.11827212]
[1768757345464,0.00015742,95319.0,95311.0,0.21219453]
[1768757345663,0.00015742,95319.0,95312.0,0.11827212]
[1768757345963,0.00015742,95319.0,95312.0,0.11127212]
[1768757347457,0.00015742,95319.0,95312.0,0.10672212]
[1768757347863,0.00015742,95319.0,95312.0,0.04127212]
[1768757349468,0.00015742,95319.0,95311.0,0.06519453]
[1768757351567,0.00015742,95319.0,95312.0,0.11827212]
[1768757352873,0.00015742,95319.0,95312.0,0.04827212]
[1768757355570,0.00015742,95319.0,95311.0,0.04346665]
[1768757357573,0.00015742,95319.0,95311.0,0.16173877]
[1768757363072,0.00015742,95319.0,95312.0,0.11939152]
[1768757363477,0.00015742,95319.0,95313.0,0.11939152]
[1768757364371,0.00015742,95319.0,95313.0,0.04939152]
[1768757364876,0.00015742,95319.0,95312.0,0.09078017]
[1768757371982,0.00015742,95319.0,95312.0,0.21017169]
[1768757372276,0.00015742,95319.0,95312.0,0.19617169]
[1768757373582,0.00015742,95319.0,95312.0,0.18217169]
[1768757374076,0.00015742,95319.0,95312.0,0.16817169]
[1768757375278,0.010495,95318.0,95312.0,0.16817169]
[1768757382884,0.010496,95316.0,95299.0,0.00659932]
[1768757383282,0.04099216,95318.0,95303.0,0.10491528]
[1768757383587,0.01065242,95319.0,95301.0,0.010497]
[1768757383789,0.010496,95317.0,95301.0,0.010497]
[1768757383988,0.010496,95317.0,95304.0,0.10491528]
[1768757384189,0.10477066,95314.0,95295.0,0.01245936]
[1768757384377,0.10477066,95310.0,95290.0,0.10477066]
[1768757384576,0.11526666,95310.0,95297.0,0.10492188]
[1768757384781,0.11526666,95310.0,95291.0,0.010498]
[1768757384979,0.10477066,95304.0,95289.0,0.00230878]
[1768757385177,0.10477066,95304.0,95294.0,5.13e-05]
[1768757386291,0.09448,95310.0,95294.0,5.13e-05]
[1768757386487,0.10477066,95304.0,95294.0,5.13e-05]
[1768757386689,0.20974666,95310.0,95294.0,5.13e-05]
[1768757387884,0.19925066,95310.0,95294.0,5.13e-05]
[1768757388788,0.19925066,95310.0,95294.0,0.01347156]
[1768757394593,0.010496,95309.0,95294.0,0.01347156]
[1768757395590,0.19925066,95310.0,95294.0,0.01347156]
[1768757396696,0.09448,95310.0,95294.0,0.01347156]
[1768757396891,0.19925066,95310.0,95295.0,0.010498]
[1768757398795,0.20974666,95310.0,95294.0,0.01347156]
[1768757400397,0.19925066,95310.0,95295.0,0.010498]
[1768757401599,0.19925066,95310.0,95297.0,0.010498]
[1768757401800,0.09448,95310.0,95297.0,0.010498]
[1768757402000,0.19925066,95310.0,95297.0,0.010498]
[1768757402598,0.19925066,95310.0,95295.0,0.06374836]
[1768757403097,0.19925066,95310.0,95294.0,0.02396956]
[1768757404098,0.19925066,95310.0,95296.0,0.010498]
[1768757405098,0.20974666,95310.0,95294.0,0.01347156]
[1768757407903,0.19925066,95310.0,95295.0,0.010498]
[1768757409503,0.09448,95310.0,95296.0,0.0642554]
[1768757409694,0.19925066,95310.0,95302.0,0.010497]
[1768757409895,0.09448,95310.0,95302.0,0.010497]
[1768757411705,0.09448,95310.0,95294.0,0.10858904]
[1768757412301,0.09448,95310.0,95301.0,0.010497]
[1768757414895,0.09448,95310.0,95298.0,0.010498]
[1768757417509,0.09448,95310.0,95294.0,0.00996856]
[1768757417710,0.09448,95310.0,95293.0,0.06460509]
[1768757419007,0.09384894,95315.0,95295.0,0.06394633]
[1768757419310,0.09384894,95315.0,95297.0,0.06394633]
[1768757420402,0.09384894,95315.0,95300.0,0.010497]
[1768757421006,0.10434494,95315.0,95297.0,0.06394633]
[1768757421204,0.21889581,95315.0,95296.0,0.010498]
[1768757421405,0.20839981,95314.0,95296.0,0.010498]
[1768757421607,0.11455087,95313.0,95296.0,0.010498]
[1768757422105,0.20839981,95313.0,95296.0,0.010498]
[1768757423404,0.21081866,95312.0,95296.0,0.010498]
[1768757424512,0.21081866,95312.0,95293.0,0.08712796]
[1768757424812,0.21081866,95312.0,95294.0,0.10492739]
[1768757425613,0.22131466,95311.0,95294.0,0.10492739]
[1768757426511,0.22131466,95311.0,95295.0,0.010498]
[1768757427110,0.22131466,95311.0,95296.0,0.10492904]
[1768757427302,0.21081866,95311.0,95297.0,0.010498]
[1768757428013,0.09953292,95311.0,95299.0,0.010497]
[1768757428211,0.11128574,95314.0,95299.0,0.010497]
[1768757431012,0.21081866,95314.0,95299.0,0.010497]
[1768757432812,0.21081866,95314.0,95293.0,0.07545946]
[1768757433012,0.21081866,95313.0,95293.0,0.07545946]
[1768757433216,0.21081866,95313.0,95294.0,0.16782817]
[1768757433814,0.21081866,95313.0,95299.0,0.010497]
[1768757435311,0.21081866,95313.0,95300.0,0.10492518]
[1768757435312,0.09953292,95313.0,95300.0,0.10492518]
[1768757435516,0.09953292,95313.0,95305.0,0.010497]
[1768757435908,0.09953292,95313.0,95306.0,0.10492518]
[1768757437717,0.09953292,95313.0,95306.0,0.03492518]
[1768757439518,0.11128574,95316.0,95306.0,0.04542218]
[1768757439714,0.11128574,95316.0,95297.0,0.06418729]
[1768757440020,0.11128574,95316.0,95298.0,0.10492133]
[1768757440220,0.11128574,95316.0,95306.0,0.010497]
[1768757440611,0.09036259,95319.0,95306.0,0.010497]
[1768757441014,0.20368944,95319.0,95306.0,0.010497]
[1768757441619,0.11332685,95318.0,95294.0,0.09339573]
[1768757442012,0.11332685,95318.0,95298.0,0.10491803]
[1768757442209,0.00015742,95319.0,95297.0,0.09448]
[1768757442718,0.00015742,95319.0,95307.0,0.010497]
[1768757444718,0.00015742,95319.0,95309.0,0.010496]
[1768757445116,0.00015742,95319.0,95306.0,0.010497]
[1768757445423,0.11348427,95319.0,95306.0,0.010497]
[1768757445624,0.11332685,95318.0,95298.0,0.09854125]
[1768757445818,0.20353202,95318.0,95298.0,0.09854125]
[1768757446022,0.20353202,95318.0,95299.0,0.10491638]
[1768757446220,0.20353202,95318.0,95305.0,0.010497]
[1768757446524,0.09020517,95318.0,95305.0,0.010497]
[1768757446826,0.09020517,95318.0,95306.0,0.10492298]
[1768757447425,0.20353202,95318.0,95306.0,0.10492298]
[1768757452927,0.20640602,95316.0,95306.0,0.10492298]
[1768757467836,0.21690202,95316.0,95306.0,0.10492298]
[1768757469940,0.00015742,95319.0,95299.0,0.09448]
[1768757469941,0.20640602,95309.0,95299.0,0.09448]
[1768757470338,0.09554782,95309.0,95301.0,0.10491968]
[1768757470539,0.09554782,95309.0,95299.0,0.09448]
[1768757470938,0.09554782,95309.0,95300.0,0.10492739]
[1768757472040,0.09554782,95309.0,95297.0,0.010498]
[1768757472242,0.09554782,95309.0,95298.0,0.10492683]
[1768757474746,0.09554782,95309.0,95299.0,0.010497]
[1768757474948,0.1108582,95313.0,95299.0,0.11527454]
[1768757475339,0.1108582,95313.0,95300.0,0.10492794]
[1768757475546,0.20640602,95309.0,95300.0,0.10492794]
[1768757476241,0.09554782,95309.0,95300.0,0.10492794]
[1768757483158,0.09554782,95309.0,95298.0,0.010498]
[1768757483456,0.09554782,95309.0,95299.0,0.10492683]
[1768757484149,0.09554782,95309.0,95300.0,0.010497]
[1768757484755,0.09554782,95309.0,95301.0,0.10492739]
[1768757487055,0.09554782,95309.0,95299.0,0.10477754]
[1768757487357,0.09554782,95309.0,95300.0,0.10492628]
[1768757491064,0.09368768,95315.0,95300.0,0.10492628]
[1768757491252,0.09368768,95315.0,95300.0,0.09092628]
[1768757491559,0.00015742,95319.0,95300.0,0.09092628]
[1768757491763,0.00015742,95319.0,95300.0,0.07692628]
[1768757492057,0.20302712,95319.0,95304.0,0.010497]
[1768757492259,0.2028697,95318.0,95304.0,0.010497]
[1768757493054,0.2028697,95317.0,95304.0,0.010497]
[1768757493257,0.2028697,95317.0,95299.0,0.10477754]
[1768757493458,0.10918202,95316.0,95299.0,0.10477754]
[1768757493655,0.10918202,95316.0,95300.0,0.10492023]
[1768757494460,0.00015742,95319.0,95307.0,0.010497]
[1768757495157,0.20302712,95319.0,95307.0,0.010497]
[1768757495556,0.2028697,95318.0,95307.0,0.010497]
[1768757495959,0.2028697,95318.0,95303.0,0.010497]
[1768757496856,0.11460617,95317.0,95303.0,0.010497]
[1768757497755,0.21402974,95317.0,95303.0,0.010497]
[1768757498460,0.21402974,95316.0,95300.0,0.11527454]
[1768757498659,0.11460617,95315.0,95300.0,0.11527454]
[1768757498860,0.11460617,95315.0,95301.0,0.10492078]
[1768757499560,0.11460617,95315.0,95302.0,0.010497]
[1768757504563,0.21402974,95315.0,95302.0,0.010497]
[1768757505862,0.21402974,95314.0,95302.0,0.010497]
[1768757506366,0.11460617,95313.0,95302.0,0.010497]
[1768757511572,0.11460617,95313.0,95305.0,0.010497]
[1768757511973,0.11460617,95313.0,95301.0,0.10142053]
[1768757512273,0.11460617,95313.0,95300.0,0.10477754]
[1768757512575,0.11460617,95313.0,95301.0,0.10492353]
[1768757513274,0.11460617,95313.0,95302.0,0.010497]
[1768757513475,0.11460617,95313.0,95301.0,0.10142053]
[1768757513774,0.11460617,95313.0,95300.0,0.10477754]
[1768757513974,0.11460617,95313.0,95301.0,0.10492408]
[1768757514275,0.00015742,95319.0,95302.0,0.11681835]
[1768757514672,0.00015742,95319.0,95302.0,0.10281835]
[1768757514872,0.00015742,95319.0,95301.0,0.09124261]
[1768757515066,0.00015742,95319.0,95309.0,0.11527354]
[1768757515272,0.00015742,95319.0,95302.0,0.10492408]
[1768757515475,0.00015742,95319.0,95310.0,0.010496]
[1768757520778,0.00015742,95319.0,95309.0,0.11527354]
[1768757521080,0.00015742,95319.0,95309.0,0.11282354]
[1768757521481,0.00015742,95319.0,95309.0,0.10127354]
[1768757521676,0.00015742,95319.0,95309.0,0.09077754]
[1768757522180,0.00015742,95319.0,95312.0,0.010496]
[1768757522676,0.11789344,95317.0,95300.0,0.19925754]
[1768757522984,0.11789344,95317.0,95301.0,0.10491473]
[1768757523177,0.11789344,95317.0,95307.0,0.010497]
[1768757523480,0.11789344,95317.0,95304.0,0.010497]
[1768757525479,0.11789344,95317.0,95301.0,0.010497]
[1768757525782,0.11789344,95317.0,95301.0,0.11541723]
[1768757526084,0.11789344,95316.0,95301.0,0.11541723]
[1768757529072,0.11789344,95316.0,95301.0,0.10492023]
[1768757530382,0.11789344,95316.0,95302.0,0.010497]
[1768757532572,0.21689727,95316.0,95302.0,0.010497]
[1768757534686,0.21689727,95316.0,95304.0,0.010497]
[1768757538380,0.11789344,95315.0,95304.0,0.010497]
[1768757538786,0.21689727,95315.0,95304.0,0.010497]
[1768757545294,0.11104448,95314.0,95304.0,0.010497]
[1768757546701,0.2032818,95314.0,95304.0,0.010497]
[1768757547996,0.2032818,95314.0,95306.0,0.010497]
[1768757553305,0.11104448,95313.0,95306.0,0.010497]
[1768757554006,0.11104448,95313.0,95303.0,0.010497]
[1768757555608,0.2032818,95313.0,95303.0,0.010497]
[1768757557004,0.11789962,95312.0,95303.0,0.010497]
[1768757557306,0.11789962,95311.0,95300.0,0.104977]
[1768757557606,0.11789962,95311.0,95301.0,0.10492298]
[1768757557803,0.21222262,95310.0,95301.0,0.10492298]
[1768757559005,0.21222262,95309.0,95301.0,0.10492298]
[1768757561604,0.00015742,95319.0,95289.0,0.09448]
[1768757561605,0.11789962,95300.0,95289.0,0.09448]
[1768757561804,0.09448,95314.0,95289.0,0.010499]
[1768757561805,0.11789962,95298.0,95289.0,0.010499]
[1768757562010,0.11789962,95298.0,95290.0,0.10492628]
[1768757565411,0.11789962,95298.0,95291.0,0.010498]
[1768757565905,0.21222262,95309.0,95289.0,0.01510102]
[1768757566113,0.11789962,95306.0,95298.0,0.010498]
[1768757566315,0.11789962,95306.0,95290.0,0.1014364]
[1768757566501,0.11789962,95306.0,95296.0,0.010498]
[1768757566700,0.11789962,95306.0,95288.0,0.048978]
[1768757566902,0.11789962,95306.0,95289.0,0.10493399]
[1768757567512,0.11789962,95306.0,95296.0,0.010498]
[1768757567714,0.11789962,95306.0,95295.0,0.010498]
[1768757568005,0.09448,95314.0,95298.0,0.010498]
[1768757568308,0.11789962,95313.0,95303.0,0.010497]
[1768757569312,0.11789962,95313.0,95299.0,0.010497]
[1768757570714,0.11789962,95313.0,95301.0,0.010497]
[1768757571711,0.21222262,95313.0,95301.0,0.010497]
[1768757572207,0.11620518,95312.0,95301.0,0.010497]
[1768757574105,0.2081163,95312.0,95301.0,0.010497]
[1768757574308,0.11620518,95311.0,95301.0,0.010497]
[1768757574514,0.09448,95314.0,95301.0,0.010497]
[1768757574712,0.00230829,95309.0,95301.0,0.010497]
[1768757579223,0.00230829,95309.0,95292.0,0.09499628]
[1768757579412,0.11620518,95308.0,95296.0,0.010498]
[1768757580811,0.11620518,95306.0,95289.0,0.02566254]
[1768757581018,0.11620518,95306.0,95290.0,0.09448]
[1768757581211,0.11620518,95306.0,95291.0,0.010498]
[1768757581822,0.09191112,95303.0,95289.0,0.01516354]
[1768757582116,0.11620518,95298.0,95284.0,0.00230889]
[1768757582315,0.11620518,95298.0,95288.0,0.010499]
[1768757582506,0.11620518,95298.0,95288.0,0.11543244]
[1768757582713,0.11620518,95298.0,95288.0,0.010499]
[1768757584717,0.09191112,95299.0,95288.0,0.02502811]
[1768757586922,0.11620518,95306.0,95291.0,0.010498]
[1768757587113,0.00230829,95309.0,95293.0,0.010498]
[1768757587313,0.11851347,95309.0,95293.0,0.010498]
[1768757587510,0.00230829,95309.0,95296.0,0.010498]
[1768757587720,0.00230829,95309.0,95301.0,0.010497]
[1768757588021,0.00230829,95309.0,95291.0,0.20760734]
[1768757588222,0.00230829,95309.0,95298.0,0.010498]
[1768757588412,0.00230829,95309.0,95291.0,0.20760734]
[1768757589825,0.00230829,95309.0,95297.0,0.010498]
[1768757592920,0.11851347,95309.0,95297.0,0.010498]
[1768757593121,0.11851347,95309.0,95293.0,0.010498]
[1768757593325,0.11620518,95308.0,95293.0,0.010498]
[1768757594228,0.11620518,95308.0,95291.0,0.09448]
[1768757595224,0.11620518,95308.0,95292.0,0.010498]
[1768757599336,0.11620518,95308.0,95291.0,0.09448]
[1768757600036,0.11620518,95308.0,95291.0,0.104978]
[1768757606042,0.11620518,95308.0,95291.0,0.010498]
[1768757611544,0.11289003,95297.0,95289.0,0.09448]
[1768757611734,0.0028478,95297.0,95288.0,0.01547361]
[1768757611934,0.0028478,95297.0,95288.0,0.10493234]
[1768757612240,0.0028478,95297.0,95287.0,0.11529127]
[1768757612441,0.09082917,95298.0,95287.0,0.11529127]
[1768757612745,0.09082917,95298.0,95288.0,0.1049395]
[1768757613147,0.00230829,95309.0,95288.0,0.1049395]
[1768757613348,0.09082917,95308.0,95290.0,0.10479227]
[1768757613649,0.09082917,95306.0,95290.0,0.10479227]
[1768757613847,0.03821096,95303.0,95290.0,0.10479227]
[1768757623962,0.09082917,95304.0,95290.0,0.10479227]
[1768757630572,0.03777608,95306.0,95290.0,0.10479227]
[1768757635872,0.010497,95305.0,95290.0,0.10479227]
[1768757637074,0.010497,95308.0,95290.0,0.10479227]
[1768757637771,0.010497,95308.0,95290.0,0.21933491]
[1768757638073,0.010497,95308.0,95291.0,0.11454264]
[1768757638574,0.010497,95306.0,95291.0,0.11454264]
[1768757639172,0.09678829,95309.0,95291.0,0.11454264]
[1768757640274,0.010497,95305.0,95291.0,0.11454264]
[1768757650981,0.010497,95305.0,95291.0,0.21181663]
[1768757651468,0.010497,95305.0,95292.0,0.11454264]
[1768757653187,0.010497,95305.0,95292.0,0.21181663]
[1768757653481,0.01280429,95309.0,95293.0,0.11454264]
[1768757653789,0.01280429,95309.0,95294.0,0.21181663]
[1768757653978,0.01280429,95309.0,95295.0,0.11454264]
[1768757656784,0.01280429,95309.0,95295.0,0.21181663]
[1768757657188,0.01280429,95309.0,95297.0,0.21181663]
[1768757663686,0.010497,95306.0,95297.0,0.21181663]
[1768757664386,0.010497,95304.0,95297.0,0.21181663]
[1768757668986,0.010497,95304.0,95297.0,0.14181663]
[1768757671592,0.010497,95304.0,95297.0,0.07181663]
[1768757673488,0.010497,95304.0,95297.0,0.00181663]
[1768757675495,0.010497,95304.0,95295.0,0.11112441]
[1768757676597,0.010497,95307.0,95295.0,0.11112441]
[1768757680704,0.010497,95307.0,95295.0,0.20221454]
[1768757680904,0.00230829,95309.0,95296.0,0.20748528]
[1768757681200,0.04103597,95322.0,95296.0,0.20748528]
[1768757681201,0.10497592,95324.0,95308.0,0.09109013]
[1768757681505,0.010495,95320.0,95312.0,0.09109013]
[1768757681698,0.09448092,95324.0,95313.0,1.5e-07]
[1768757681897,0.010495,95320.0,95312.0,0.06309013]
[1768757682097,0.010495,95320.0,95300.0,0.09448]
[1768757682301,0.010495,95320.0,95300.0,0.05248]
[1768757683093,0.010495,95320.0,95300.0,0.04793]
[1768757683498,0.010495,95320.0,95300.0,0.09448]
[1768757683801,0.010495,95320.0,95303.0,0.20748528]
[1768757684002,0.010495,95323.0,95306.0,0.20748528]
[1768757684203,0.0233288,95322.0,95307.0,0.11639515]
[1768757684406,0.010495,95323.0,95307.0,0.11639515]
[1768757684701,0.02335777,95322.0,95307.0,0.11639515]
[1768757684907,0.010495,95323.0,95307.0,0.11639515]
[1768757685111,0.02335777,95322.0,95307.0,0.11639515]
[1768757685314,0.09448092,95324.0,95307.0,0.11639515]
[1768757685315,0.09448092,95324.0,95308.0,0.11639515]
[1768757685516,0.0233566,95323.0,95308.0,0.11639515]
[1768757685707,0.09448092,95324.0,95308.0,0.11639515]
[1768757686008,0.02335597,95323.0,95309.0,0.20748528]
[1768757686214,0.09448092,95324.0,95310.0,0.11639515]
[1768757686412,0.02335457,95323.0,95311.0,0.11639515]
[1768757686613,0.09448092,95324.0,95312.0,0.11639515]
[1768757687818,9.2e-07,95324.0,95316.0,0.11639515]
[1768757688111,9.2e-07,95324.0,95317.0,0.11639515]
[1768757689512,9.2e-07,95324.0,95317.0,0.07859515]
[1768757690114,9.2e-07,95324.0,95317.0,0.07439515]
[1768757690321,9.2e-07,95324.0,95316.0,0.09109013]
[1768757690914,9.2e-07,95324.0,95310.0,0.09109013]
[1768757691414,0.01049592,95324.0,95310.0,0.09109013]
[1768757692106,9.2e-07,95324.0,95312.0,0.09109013]
[1768757692307,9.2e-07,95324.0,95313.0,0.11257368]
[1768757693308,0.01049592,95324.0,95313.0,0.11257368]
[1768757693524,9.2e-07,95324.0,95313.0,0.11257368]
[1768757693725,0.01049592,95324.0,95312.0,0.09109013]
[1768757695127,0.01049592,95324.0,95313.0,0.11257368]
[1768757700228,0.010495,95322.0,95313.0,0.11257368]
[1768757701636,9.2e-07,95324.0,95313.0,0.11257368]
[1768757702727,9.2e-07,95324.0,95309.0,0.11257368]
[1768757702929,0.010495,95319.0,95306.0,0.21046466]
[1768757703128,0.010495,95322.0,95306.0,0.21046466]
[1768757703331,0.010495,95320.0,95303.0,0.104977]
[1768757703526,0.010495,95321.0,95306.0,0.010497]